[Event "*** Titled Tuesday Blitz"]
[Site "Chess.com"]
[Date "2019.10.01"]
[Round "1"]
[White "maciek_92"]
[Black "WPWPWP-2015"]
[Result "0-1"]
[WhiteElo "2849"]
[BlackElo "2477"]
[TimeControl "180+2"]
[EndTime "13:11:36 PDT"]
[Termination "WPWPWP-2015 won on time"]

1. c4 {[%clk 0:03:01.6]} 1... Nf6 {[%clk 0:02:59.5]} 2. Nc3 {[%clk 0:02:58.9]}
2... e6 {[%clk 0:03:00.2]} 3. Nf3 {[%clk 0:02:59.4]} 3... d5 {[%clk 0:03:00]} 4.
d4 {[%clk 0:03:00.4]} 4... c6 {[%clk 0:03:00.7]} 5. e3 {[%clk 0:02:59.5]} 5...
Nbd7 {[%clk 0:03:00.9]} 6. Qc2 {[%clk 0:03:01.1]} 6... Bd6 {[%clk 0:03:01.3]} 7.
Bd3 {[%clk 0:03:02.1]} 7... O-O {[%clk 0:03:02.3]} 8. O-O {[%clk 0:03:00.5]}
8... dxc4 {[%clk 0:03:03.5]} 9. Bxc4 {[%clk 0:03:01.5]} 9... b5 {[%clk
0:03:04.9]} 10. Bd3 {[%clk 0:03:03]} 10... Bb7 {[%clk 0:03:06.1]} 11. Ng5 {[%clk
0:03:04.6]} 11... h6 {[%clk 0:02:59.2]} 12. Nge4 {[%clk 0:03:05.5]} 12... Be7
{[%clk 0:02:54.6]} 13. Bd2 {[%clk 0:02:54.9]} 13... Rc8 {[%clk 0:02:54.3]} 14.
Nxf6+ {[%clk 0:02:50]} 14... Nxf6 {[%clk 0:02:54.6]} 15. Ne4 {[%clk 0:02:50.4]}
15... c5 {[%clk 0:02:42.3]} 16. Nxf6+ {[%clk 0:02:18.6]} 16... Bxf6 {[%clk
0:02:42.5]} 17. dxc5 {[%clk 0:02:19.2]} 17... Qd5 {[%clk 0:02:41.5]} 18. e4
{[%clk 0:02:20.1]} 18... Qd4 {[%clk 0:02:01]} 19. Be3 {[%clk 0:02:19.4]} 19...
Qxb2 {[%clk 0:02:00.5]} 20. Qxb2 {[%clk 0:02:18.5]} 20... Bxb2 {[%clk
0:02:00.7]} 21. Rab1 {[%clk 0:02:19.9]} 21... Ba3 {[%clk 0:01:57]} 22. c6 {[%clk
0:01:28.8]} 22... Bxc6 {[%clk 0:01:42.9]} 23. Bxa7 {[%clk 0:01:27.5]} 23... Ra8
{[%clk 0:01:13.3]} 24. Be3 {[%clk 0:01:18.6]} 24... Rfd8 {[%clk 0:01:12.5]} 25.
Rb3 {[%clk 0:01:12.4]} 25... b4 {[%clk 0:01:10.4]} 26. Bb1 {[%clk 0:00:19.8]}
26... Bb5 {[%clk 0:01:10.5]} 27. Re1 {[%clk 0:00:19.8]} 27... Bc4 {[%clk
0:01:10.6]} 28. Bc2 {[%clk 0:00:19.9]} 28... Bxb3 {[%clk 0:01:03.2]} 29. Bxb3
{[%clk 0:00:21.8]} 29... Bb2 {[%clk 0:01:04.5]} 30. g3 {[%clk 0:00:22]} 30...
Bc3 {[%clk 0:00:54.1]} 31. Re2 {[%clk 0:00:22]} 31... Rd3 {[%clk 0:00:47.4]} 32.
Kg2 {[%clk 0:00:22.1]} 32... h5 {[%clk 0:00:45.9]} 33. h4 {[%clk 0:00:22.8]}
33... Rc8 {[%clk 0:00:33.4]} 34. Bc2 {[%clk 0:00:23.3]} 34... Rd7 {[%clk
0:00:33]} 35. Bb3 {[%clk 0:00:24.7]} 35... Kf8 {[%clk 0:00:33]} 36. Ba4 {[%clk
0:00:23.9]} 36... Rb7 {[%clk 0:00:31.3]} 37. Bb3 {[%clk 0:00:23.6]} 37... Rd7
{[%clk 0:00:31.9]} 38. Ba4 {[%clk 0:00:24.5]} 38... Rd3 {[%clk 0:00:32.6]} 39.
Bc2 {[%clk 0:00:25.5]} 39... Rdd8 {[%clk 0:00:33.1]} 40. Bb3 {[%clk 0:00:22.9]}
40... Ke7 {[%clk 0:00:33.8]} 41. Bb6 {[%clk 0:00:21.1]} 41... Rd6 {[%clk
0:00:33.6]} 42. Be3 {[%clk 0:00:22.4]} 42... f6 {[%clk 0:00:33.5]} 43. Bf4
{[%clk 0:00:13]} 43... Rd7 {[%clk 0:00:32.3]} 44. Ba4 {[%clk 0:00:13.2]} 44...
Rd3 {[%clk 0:00:32.1]} 45. Bc2 {[%clk 0:00:14]} 45... Rd7 {[%clk 0:00:31.3]} 46.
Ba4 {[%clk 0:00:14.8]} 46... Rdd8 {[%clk 0:00:32.5]} 47. Be3 {[%clk 0:00:15]}
47... Bd4 {[%clk 0:00:32.3]} 48. Bd2 {[%clk 0:00:15.3]} 48... Bc3 {[%clk
0:00:30.4]} 49. Be3 {[%clk 0:00:16.6]} 49... g6 {[%clk 0:00:28.4]} 50. Bb3
{[%clk 0:00:16.5]} 50... Rc6 {[%clk 0:00:27.4]} 51. Ba4 {[%clk 0:00:16.8]} 51...
Ra6 {[%clk 0:00:28.1]} 52. Bb5 {[%clk 0:00:17]} 52... Ra5 {[%clk 0:00:25.3]} 53.
Bc4 {[%clk 0:00:16.6]} 53... Rc8 {[%clk 0:00:23.5]} 54. Bb3 {[%clk 0:00:17.6]}
54... e5 {[%clk 0:00:21.4]} 55. Rc2 {[%clk 0:00:13.7]} 55... Raa8 {[%clk
0:00:20.6]} 56. Bd5 {[%clk 0:00:13.4]} 56... Ra6 {[%clk 0:00:20]} 57. Bb7 {[%clk
0:00:13.6]} 57... Rca8 {[%clk 0:00:19.3]} 58. Bxa8 {[%clk 0:00:11.4]} 58... Rxa8
{[%clk 0:00:20.2]} 59. Kf1 {[%clk 0:00:13]} 59... f5 {[%clk 0:00:14]} 60. exf5
{[%clk 0:00:12.2]} 60... gxf5 {[%clk 0:00:14.8]} 61. Ke2 {[%clk 0:00:13.1]}
61... Ke6 {[%clk 0:00:16]} 62. Bd2 {[%clk 0:00:12.6]} 62... Bxd2 {[%clk
0:00:09.3]} 63. Kxd2 {[%clk 0:00:14]} 63... Kd5 {[%clk 0:00:09.8]} 64. Kc1
{[%clk 0:00:14.5]} 64... Ra3 {[%clk 0:00:09.7]} 65. Kb2 {[%clk 0:00:13.5]} 65...
Rf3 {[%clk 0:00:10.3]} 66. Rd2+ {[%clk 0:00:12.9]} 66... Kc4 {[%clk 0:00:11]}
67. Kc2 {[%clk 0:00:11.5]} 67... e4 {[%clk 0:00:11.4]} 68. Re2 {[%clk
0:00:11.3]} 68... Rd3 {[%clk 0:00:10.5]} 69. Re3 {[%clk 0:00:08.8]} 69... Rd5
{[%clk 0:00:03.4]} 70. Re2 {[%clk 0:00:04.6]} 70... Ra5 {[%clk 0:00:03.6]} 71.
Kb2 {[%clk 0:00:04.7]} 71... Kd3 {[%clk 0:00:04.6]} 72. Re3+ {[%clk 0:00:06.3]}
72... Kc4 {[%clk 0:00:05.8]} 73. Re2 {[%clk 0:00:06.5]} 73... Ra3 {[%clk
0:00:06.7]} 74. Rc2+ {[%clk 0:00:06.5]} 74... Kd3 {[%clk 0:00:07.7]} 75. Rc5
{[%clk 0:00:07.8]} 75... Ke2 {[%clk 0:00:08.2]} 0-1

[Event "*** Titled Tuesday Blitz"]
[Site "Chess.com"]
[Date "2019.10.01"]
[Round "1"]
[White "kosmeg"]
[Black "ChessWarrior7197"]
[Result "1-0"]
[WhiteElo "2491"]
[BlackElo "2908"]
[TimeControl "180+2"]
[EndTime "13:12:26 PDT"]
[Termination "kosmeg won by resignation"]

1. d4 {[%clk 0:03:01.9]} 1... Nf6 {[%clk 0:02:57.6]} 2. c4 {[%clk 0:03:00.3]}
2... e6 {[%clk 0:02:58.3]} 3. g3 {[%clk 0:03:00.8]} 3... c5 {[%clk 0:02:58.1]}
4. Nf3 {[%clk 0:03:01.1]} 4... cxd4 {[%clk 0:02:58.1]} 5. Nxd4 {[%clk 0:03:03]}
5... Bb4+ {[%clk 0:02:58.6]} 6. Bd2 {[%clk 0:03:03.8]} 6... Be7 {[%clk
0:02:59.1]} 7. Bg2 {[%clk 0:03:04.7]} 7... Qc7 {[%clk 0:02:59.8]} 8. b3 {[%clk
0:02:51.8]} 8... Nc6 {[%clk 0:02:58.9]} 9. Bc3 {[%clk 0:02:46.2]} 9... O-O
{[%clk 0:02:58.9]} 10. O-O {[%clk 0:02:46.7]} 10... d5 {[%clk 0:02:59.9]} 11.
cxd5 {[%clk 0:02:45.8]} 11... Nxd5 {[%clk 0:03:00.1]} 12. Bb2 {[%clk 0:02:45.4]}
12... Nxd4 {[%clk 0:02:59.8]} 13. Bxd4 {[%clk 0:02:45]} 13... Rd8 {[%clk
0:03:00.4]} 14. Qc1 {[%clk 0:02:39.9]} 14... Qxc1 {[%clk 0:02:58.9]} 15. Rxc1
{[%clk 0:02:40.9]} 15... Nf4 {[%clk 0:02:45]} 16. gxf4 {[%clk 0:02:36.2]} 16...
Rxd4 {[%clk 0:02:45.4]} 17. e3 {[%clk 0:02:17.2]} 17... Rd8 {[%clk 0:02:45.3]}
18. Nc3 {[%clk 0:02:18.6]} 18... Rb8 {[%clk 0:02:23.8]} 19. Rd1 {[%clk
0:02:08.6]} 19... Bd7 {[%clk 0:02:21.6]} 20. Rd3 {[%clk 0:02:06]} 20... b6
{[%clk 0:02:14.7]} 21. Rad1 {[%clk 0:02:06.9]} 21... Be8 {[%clk 0:02:15.7]} 22.
Rxd8 {[%clk 0:02:05.2]} 22... Bxd8 {[%clk 0:02:17.1]} 23. Ne4 {[%clk 0:02:03.4]}
23... Be7 {[%clk 0:02:15.7]} 24. Bf3 {[%clk 0:01:56.7]} 24... Kf8 {[%clk
0:02:11.5]} 25. Nd6 {[%clk 0:01:56.2]} 25... Bxd6 {[%clk 0:02:09.8]} 26. Rxd6
{[%clk 0:01:56.6]} 26... Ke7 {[%clk 0:02:11.7]} 27. Rd2 {[%clk 0:01:55]} 27...
Rc8 {[%clk 0:02:12.7]} 28. Kg2 {[%clk 0:01:51.1]} 28... Rc1 {[%clk 0:02:12.4]}
29. Be4 {[%clk 0:01:50.6]} 29... f5 {[%clk 0:02:05.9]} 30. Rc2 {[%clk
0:01:46.2]} 30... Rxc2 {[%clk 0:02:00.7]} 31. Bxc2 {[%clk 0:01:47.1]} 31... Kf6
{[%clk 0:02:01.9]} 32. Kf1 {[%clk 0:01:45.5]} 32... e5 {[%clk 0:02:01.8]} 33.
fxe5+ {[%clk 0:01:46.7]} 33... Kxe5 {[%clk 0:02:02.8]} 34. f4+ {[%clk
0:01:47.8]} 34... Ke6 {[%clk 0:02:03.1]} 35. Ke2 {[%clk 0:01:48.1]} 35... h6
{[%clk 0:01:59]} 36. h4 {[%clk 0:01:48]} 36... Bc6 {[%clk 0:01:59.3]} 37. Kd2
{[%clk 0:01:48.4]} 37... a5 {[%clk 0:01:55.4]} 38. Kc3 {[%clk 0:01:49.2]} 38...
Kf6 {[%clk 0:01:44.5]} 39. Kd4 {[%clk 0:01:48.3]} 39... Bf3 {[%clk 0:01:44.3]}
40. a3 {[%clk 0:01:46.7]} 40... Bc6 {[%clk 0:01:44.5]} 41. b4 {[%clk 0:01:47.5]}
41... axb4 {[%clk 0:01:45.3]} 42. axb4 {[%clk 0:01:49.4]} 42... Bb7 {[%clk
0:01:45.9]} 43. Bd1 {[%clk 0:01:47.6]} 43... Be4 {[%clk 0:01:44.2]} 44. Be2
{[%clk 0:01:48.5]} 44... Bc6 {[%clk 0:01:42.9]} 45. Bd1 {[%clk 0:01:49.1]} 45...
Ke6 {[%clk 0:01:43.7]} 46. Bb3+ {[%clk 0:01:46.5]} 46... Kd6 {[%clk 0:01:44.2]}
47. Bc2 {[%clk 0:01:47.5]} 47... Bd7 {[%clk 0:01:45]} 48. Bd3 {[%clk 0:01:48.1]}
48... Be6 {[%clk 0:01:45.5]} 49. Bc2 {[%clk 0:01:47.7]} 49... Bc8 {[%clk
0:01:42.1]} 50. Bd3 {[%clk 0:01:48.1]} 50... Bd7 {[%clk 0:01:43.3]} 51. Bc2
{[%clk 0:01:48.8]} 51... Ke6 {[%clk 0:01:44.6]} 52. Bb3+ {[%clk 0:01:43.5]}
52... Kd6 {[%clk 0:01:45.3]} 53. Bc2 {[%clk 0:01:44.4]} 53... Ke6 {[%clk
0:01:30.2]} 54. Bb3+ {[%clk 0:01:44.5]} 54... Kf6 {[%clk 0:01:31.5]} 55. Bc2
{[%clk 0:01:41.5]} 55... g5 {[%clk 0:01:30.1]} 56. hxg5+ {[%clk 0:01:41.2]}
56... hxg5 {[%clk 0:01:32]} 57. fxg5+ {[%clk 0:01:42.4]} 57... Kxg5 {[%clk
0:01:33.1]} 58. Ke5 {[%clk 0:01:43.6]} 58... Bc8 {[%clk 0:01:32.1]} 59. Bd1
{[%clk 0:01:42.4]} 59... Bb7 {[%clk 0:01:31.6]} 60. Kd6 {[%clk 0:01:37.8]} 60...
Be4 {[%clk 0:01:28.9]} 61. Kc7 {[%clk 0:01:35.5]} 61... b5 {[%clk 0:01:26.7]}
62. Kd6 {[%clk 0:01:36.2]} 62... Bd3 {[%clk 0:01:24.9]} 63. Ke5 {[%clk
0:01:36.7]} 63... Kg6 {[%clk 0:01:24.1]} 64. Bb3 {[%clk 0:01:34.8]} 64... Kg5
{[%clk 0:01:22.6]} 65. Be6 {[%clk 0:01:34.6]} 65... Kg4 {[%clk 0:01:23.6]} 66.
Bd7 {[%clk 0:01:32.5]} 66... Kg5 {[%clk 0:01:20]} 67. Kd4 {[%clk 0:01:33.4]}
67... Bf1 {[%clk 0:01:19.6]} 68. Kc5 {[%clk 0:01:19.1]} 68... f4 {[%clk
0:01:20.9]} 69. exf4+ {[%clk 0:01:18.1]} 69... Kxf4 {[%clk 0:01:22.8]} 70. Bxb5
{[%clk 0:01:19.5]} 70... Bg2 {[%clk 0:01:24.3]} 71. Bc6 {[%clk 0:01:19.4]} 71...
Bf1 {[%clk 0:01:25.2]} 72. Bd5 {[%clk 0:01:11.4]} 72... Ke5 {[%clk 0:01:25.7]}
73. Bc4 {[%clk 0:01:12.2]} 73... Bg2 {[%clk 0:01:25.5]} 74. b5 {[%clk
0:01:11.9]} 74... Bf3 {[%clk 0:01:24.4]} 75. Bf7 {[%clk 0:00:47.8]} 75... Bg2
{[%clk 0:01:11.5]} 76. b6 {[%clk 0:00:25.3]} 76... Bb7 {[%clk 0:01:11.5]} 77.
Bg8 {[%clk 0:00:21.4]} 77... Be4 {[%clk 0:00:58.7]} 78. Bc4 {[%clk 0:00:21.6]}
78... Bb7 {[%clk 0:00:55]} 79. Bf7 {[%clk 0:00:20.8]} 79... Be4 {[%clk
0:00:50.1]} 80. Be8 {[%clk 0:00:21.5]} 80... Bb7 {[%clk 0:00:51.5]} 81. Bc6
{[%clk 0:00:22.5]} 81... Ba6 {[%clk 0:00:52.6]} 82. Bd5 {[%clk 0:00:23.2]} 82...
Bc8 {[%clk 0:00:41.3]} 83. Kc6 {[%clk 0:00:21.7]} 83... Kd4 {[%clk 0:00:42.6]}
84. Kc7 {[%clk 0:00:20.4]} 84... Ba6 {[%clk 0:00:30.6]} 85. Bb7 {[%clk
0:00:21.4]} 85... Bc4 {[%clk 0:00:18.7]} 86. Bc6 {[%clk 0:00:21.4]} 86... Ba6
{[%clk 0:00:18.8]} 87. Bb5 {[%clk 0:00:22.3]} 87... Bxb5 {[%clk 0:00:19]} 88. b7
{[%clk 0:00:23.7]} 88... Kc5 {[%clk 0:00:20.9]} 89. b8=Q {[%clk 0:00:25.1]}
89... Bc4 {[%clk 0:00:22.4]} 90. Qb6+ {[%clk 0:00:26.4]} 90... Kd5 {[%clk
0:00:24.3]} 91. Qd6+ {[%clk 0:00:27.5]} 91... Ke4 {[%clk 0:00:25.7]} 92. Kb6
{[%clk 0:00:28.6]} 92... Bd5 {[%clk 0:00:27.6]} 93. Kc5 {[%clk 0:00:29.6]} 93...
Bb3 {[%clk 0:00:29.5]} 1-0

[Event "*** Titled Tuesday Blitz"]
[Site "Chess.com"]
[Date "2019.10.01"]
[Round "1"]
[White "WanderingPuppet"]
[Black "hansen"]
[Result "1/2-1/2"]
[WhiteElo "2431"]
[BlackElo "2787"]
[TimeControl "180+2"]
[EndTime "13:12:38 PDT"]
[Termination "Game drawn by agreement"]

1. e4 {[%clk 0:01:06.1]} 1... c5 {[%clk 0:02:45.7]} 2. Nf3 {[%clk 0:01:04.8]}
2... e6 {[%clk 0:02:46]} 3. c3 {[%clk 0:01:01.1]} 3... Nf6 {[%clk 0:02:46.5]} 4.
e5 {[%clk 0:00:57.1]} 4... Nd5 {[%clk 0:02:47.2]} 5. d4 {[%clk 0:00:57.5]} 5...
cxd4 {[%clk 0:02:47]} 6. cxd4 {[%clk 0:00:52.9]} 6... d6 {[%clk 0:02:48.3]} 7.
Bd3 {[%clk 0:00:47.9]} 7... dxe5 {[%clk 0:02:47.8]} 8. Nxe5 {[%clk 0:00:46.9]}
8... Nc6 {[%clk 0:02:47.2]} 9. Nxc6 {[%clk 0:00:45.3]} 9... bxc6 {[%clk
0:02:47.3]} 10. O-O {[%clk 0:00:45.8]} 10... Bd6 {[%clk 0:02:48.1]} 11. g3
{[%clk 0:00:32.3]} 11... O-O {[%clk 0:02:39.2]} 12. Nc3 {[%clk 0:00:29.1]} 12...
Nxc3 {[%clk 0:02:22.4]} 13. bxc3 {[%clk 0:00:29.5]} 13... Qc7 {[%clk 0:02:22.8]}
14. Qe2 {[%clk 0:00:25.7]} 14... Bb7 {[%clk 0:02:21.9]} 15. Be4 {[%clk
0:00:24.5]} 15... c5 {[%clk 0:02:22.6]} 16. dxc5 {[%clk 0:00:21.9]} 16... Bxc5
{[%clk 0:02:22.2]} 17. Bxb7 {[%clk 0:00:22.2]} 17... Qxb7 {[%clk 0:02:23.2]} 18.
Be3 {[%clk 0:00:21.2]} 18... Rac8 {[%clk 0:02:23.9]} 19. Rab1 {[%clk 0:00:20.6]}
19... Qe4 {[%clk 0:02:17.5]} 20. Rb3 {[%clk 0:00:18.7]} 20... Bxe3 {[%clk
0:02:16.7]} 21. Qxe3 {[%clk 0:00:19.2]} 21... Qxe3 {[%clk 0:02:18]} 22. fxe3
{[%clk 0:00:20.7]} 22... Rc7 {[%clk 0:02:12.8]} 23. Rd1 {[%clk 0:00:20.8]} 23...
Rfc8 {[%clk 0:02:13.1]} 24. Rd3 {[%clk 0:00:18.7]} 24... Kf8 {[%clk 0:02:13.9]}
25. Kf2 {[%clk 0:00:17.8]} 25... Ke7 {[%clk 0:02:13.4]} 26. Ke2 {[%clk
0:00:18.1]} 26... Rc5 {[%clk 0:02:12.8]} 27. Ra3 {[%clk 0:00:18]} 27... R8c7
{[%clk 0:02:13.7]} 28. Kd2 {[%clk 0:00:18.5]} 28... g5 {[%clk 0:02:10.5]} 29.
Rd4 {[%clk 0:00:18.9]} 29... a5 {[%clk 0:02:05.2]} 30. Rda4 {[%clk 0:00:19.3]}
30... Rd5+ {[%clk 0:02:06.4]} 31. Ke2 {[%clk 0:00:19.9]} 31... Rcc5 {[%clk
0:01:46.7]} 32. c4 {[%clk 0:00:15.9]} 32... Re5 {[%clk 0:01:47.9]} 33. Kd3
{[%clk 0:00:15]} 33... g4 {[%clk 0:01:48.2]} 34. Kd4 {[%clk 0:00:12.8]} 34...
Rh5 {[%clk 0:01:49.3]} 35. Kd3 {[%clk 0:00:10.6]} 35... Kd6 {[%clk 0:01:22]} 36.
Kd4 {[%clk 0:00:09.9]} 36... Kc7 {[%clk 0:01:22.1]} 37. Kd3 {[%clk 0:00:08.7]}
37... Kb6 {[%clk 0:00:58.4]} 38. Rb3+ {[%clk 0:00:09.2]} 38... Ka7 {[%clk
0:00:57.8]} 39. Kd4 {[%clk 0:00:05.8]} 39... Rc7 {[%clk 0:00:58.3]} 40. Rb5
{[%clk 0:00:04.8]} 40... Rxb5 {[%clk 0:00:58.8]} 41. cxb5 {[%clk 0:00:05.5]}
41... Kb6 {[%clk 0:01:00.5]} 42. Rc4 {[%clk 0:00:05.3]} 42... Rd7+ {[%clk
0:00:49.3]} 43. Kc3 {[%clk 0:00:05.9]} 43... Kxb5 {[%clk 0:00:44.4]} 44. Rxg4
{[%clk 0:00:06.5]} 44... f5 {[%clk 0:00:33.2]} 45. a4+ {[%clk 0:00:06.8]} 45...
Kc5 {[%clk 0:00:32.2]} 46. Rg8 {[%clk 0:00:06.1]} 46... Rc7 {[%clk 0:00:32.2]}
47. Re8 {[%clk 0:00:05.5]} 47... Kd5+ {[%clk 0:00:32.4]} 48. Kd3 {[%clk
0:00:06.3]} 48... Rb7 {[%clk 0:00:32.6]} 49. Rd8+ {[%clk 0:00:06]} 49... Ke5
{[%clk 0:00:30.9]} 50. Ra8 {[%clk 0:00:06]} 50... Rb3+ {[%clk 0:00:32.1]} 51.
Ke2 {[%clk 0:00:06.6]} 51... Ke4 {[%clk 0:00:32.6]} 52. Rxa5 {[%clk 0:00:06.5]}
52... Rb2+ {[%clk 0:00:33]} 53. Kd1 {[%clk 0:00:06.1]} 53... Rxh2 {[%clk
0:00:33.6]} 54. Ra6 {[%clk 0:00:05.5]} 54... e5 {[%clk 0:00:34.4]} 55. a5 {[%clk
0:00:05.6]} 55... Kxe3 {[%clk 0:00:34.4]} 56. Rf6 {[%clk 0:00:06.4]} 56... Ke4
{[%clk 0:00:25.6]} 57. a6 {[%clk 0:00:06.3]} 57... Ra2 {[%clk 0:00:25.2]} 58.
Ke1 {[%clk 0:00:04.7]} 58... Ke3 {[%clk 0:00:21.8]} 59. Kf1 {[%clk 0:00:04.7]}
59... f4 {[%clk 0:00:19.7]} 60. gxf4 {[%clk 0:00:05.3]} 60... exf4 {[%clk
0:00:17.6]} 61. Kg1 {[%clk 0:00:06.3]} 61... Kf3 {[%clk 0:00:15.9]} 62. Re6
{[%clk 0:00:02.5]} 62... Ra1+ {[%clk 0:00:15.5]} 63. Kh2 {[%clk 0:00:03.3]}
63... Kf2 {[%clk 0:00:16.8]} 64. Kh3 {[%clk 0:00:03.2]} 64... f3 {[%clk
0:00:17]} 65. Rf6 {[%clk 0:00:03.9]} 65... Ra4 {[%clk 0:00:12.4]} 66. Rh6 {[%clk
0:00:02.6]} 66... Ra1 {[%clk 0:00:05.2]} 67. Re6 {[%clk 0:00:03.2]} 67... Kf1
{[%clk 0:00:05.4]} 68. Kg3 {[%clk 0:00:03.9]} 68... f2 {[%clk 0:00:06]} 69. Rf6
{[%clk 0:00:04.7]} 69... Ra3+ {[%clk 0:00:06.5]} 70. Kh2 {[%clk 0:00:05.9]}
70... h5 {[%clk 0:00:06.4]} 71. Rh6 {[%clk 0:00:05.4]} 71... Ra5 {[%clk
0:00:06.4]} 72. Rf6 {[%clk 0:00:05.8]} 72... Re5 {[%clk 0:00:06.6]} 73. a7
{[%clk 0:00:05.9]} 73... Ra5 {[%clk 0:00:07.8]} 74. Rf7 {[%clk 0:00:06.7]} 74...
Ra3 {[%clk 0:00:08.7]} 75. Re7 {[%clk 0:00:06.7]} 75... h4 {[%clk 0:00:09.4]}
76. Rf7 {[%clk 0:00:07.4]} 76... Ke1 {[%clk 0:00:09.6]} 77. Re7+ {[%clk
0:00:07.4]} 77... Kd1 {[%clk 0:00:09.5]} 78. Rf7 {[%clk 0:00:07.5]} 78... Ke2
{[%clk 0:00:05.5]} 79. Re7+ {[%clk 0:00:07.4]} 79... Kf3 {[%clk 0:00:03.6]} 80.
Rf7+ {[%clk 0:00:07.3]} 80... Ke3 {[%clk 0:00:04.7]} 81. Kg2 {[%clk 0:00:06.2]}
81... Ra2 {[%clk 0:00:04.9]} 82. Rf3+ {[%clk 0:00:04.4]} 82... Ke4 {[%clk
0:00:05.4]} 83. Rxf2 {[%clk 0:00:04.9]} 83... h3+ {[%clk 0:00:06.8]} 84. Kg3
{[%clk 0:00:05.1]} 84... Rxa7 {[%clk 0:00:06.9]} 85. Kxh3 {[%clk 0:00:05.7]}
85... Rh7+ {[%clk 0:00:05.8]} 86. Kg2 {[%clk 0:00:06.5]} 86... Ke3 {[%clk
0:00:06.1]} 87. Rf3+ {[%clk 0:00:07.3]} 87... Ke2 {[%clk 0:00:06.8]} 88. Rh3
{[%clk 0:00:06.8]} 88... Rg7+ {[%clk 0:00:06.9]} 89. Rg3 {[%clk 0:00:07.7]}
89... Rf7 {[%clk 0:00:06.8]} 90. Rg6 {[%clk 0:00:07.5]} 90... Rf4 {[%clk
0:00:06.9]} 91. Kg3 {[%clk 0:00:07.8]} 91... Re4 {[%clk 0:00:08.2]} 92. Rf6
{[%clk 0:00:07.9]} 92... Re8 {[%clk 0:00:08.6]} 1/2-1/2